[Event "Slovakia Open 2022"]
[Site "Bratislava"]
[Date "2022.10.01"]
[Round "5.17"]
[White "Kijac, Miroslav"]
[Black "Balint, Peter"]
[Result "1/2-1/2"]
[ECO "A31"]
[WhiteElo "2078"]
[BlackElo "2235"]
[Annotator "TA"]
[PlyCount "128"]
[EventDate "2022.09.30"]
[EventCountry "SVK"]
[SourceTitle "playchess.com"]
[Source "ChessBase"]
[SourceQuality "1"]
[TimeControl "2700+10"]

{[%evp 29,128,51,58,35,44,0,0,0,0,-10,-8,0,0,-5,0,0,0,0,16,10,20,0,12,0,12,0,-6,-19,-10,-10,-12,-19,-10,-18,0,0,0,0,0,0,0,-22,0,0,16,0,0,0,0,-130,-127,-155,-156,-155,-157,-160,-155,-156,-156,-227,-131,-168,-74,-77,-77,-68,-17,-26,0,0,0,-8,-13,-26,0,-8,19,20,19,19,19,0,19,0,0,0,0,0,200,-297,200,200,200,200,418,418,418,418,411,382,382]} 1. d4 {[%emt 0:00:05]} Nf6 {[%emt 0:00:01]} 2. Nf3 {[%emt 0:00:03]} e6 {[%emt 0:00:04]} 3. c4 {[%emt 0:00:02]} c5 {[%emt 0:00:01]} 4. Nc3 {[%emt 0:00:13]} cxd4 {[%emt 0:00:25]} 5. Nxd4 {[%emt 0:00:02]} a6 {[%emt 0:00:34]} 6. e4 {[%emt 0:00:45]} d6 {[%emt 0:00:07]} 7. Be2 {[%emt 0:00:07]} Be7 {[%emt 0:00:03]} 8. Be3 {[%emt 0:00:05]} O-O {[%emt 0:00:04]} 9. Rc1 {[%emt 0:00:05]} Nbd7 {[%emt 0:00:02]} 10. O-O {[%emt 0:00:11]} Qc7 {[%emt 0:00:02]} 11. Qd2 {[%emt 0:00:18]} b6 {[%emt 0:00:03]} 12. Rfd1 {[%emt 0:01:20]} Bb7 {[%emt 0:01:55]} 13. f3 {[%emt 0:00:03]} Rac8 {[%emt 0:00:08]} 14. Bf1 {[%emt 0:01:26]} Rfd8 {[%emt 0:00:22]} 15. Qf2 {[%emt 0:00:08]} Qb8 {[%emt 0:03:00]} 16. Nb3 {[%emt 0:01:59] A31: Symmetrical English: 2 Nf3 Nf6 3 d4.} Ba8 {[%emt 0:00:46] [#]} 17. Na4 $146 {[%emt 0:02:06][%cal Ra4b6]} ({Predecessor:} 17. Kh1 h6 18. Rc2 Qc7 19. Nd4 Rb8 20. h3 Nf8 21. Na4 N6d7 22. b4 Ng6 23. Rdc1 Rdc8 {1-0 (60) Karwatt,L (2155)-Wagner,R (2184) Germany 2006}) 17... Nc5 {[%emt 0:00:32]} 18. Nbxc5 {[%emt 0:00:35] The position is equal.} dxc5 {[%emt 0:00:07]} 19. Nc3 {[%emt 0:00:05]} Bd6 {[%emt 0:00:12]} 20. g3 {[%emt 0:00:24]} Be5 {[%emt 0:05:47]} 21. Qc2 {[%emt 0:02:17]} Qc7 {[%emt 0:03:05]} 22. Ne2 {[%emt 0:02:08]} h6 {[%emt 0:02:35]} 23. Bg2 {[%emt 0:05:10]} Qc6 {[%emt 0:01:06]} 24. Kh1 {[%emt 0:04:07]} Kh8 {[%emt 0:02:07]} 25. Bg1 {[%emt 0:00:11]} Bb8 {[%emt 0:01:01]} 26. Nc3 {[%emt 0:01:19]} g5 {[%emt 0:04:31]} 27. Rxd8+ {[%emt 0:03:14]} Rxd8 {[%emt 0:00:02]} 28. Rd1 {[%emt 0:00:11]} Rxd1 {[%emt 0:03:19]} 29. Qxd1 {[%emt 0:00:00]} Qd7 {[%emt 0:00:52] Against Qd8+} 30. Qxd7 {[%emt 0:00:44]} Nxd7 {[%emt 0:00:06]} 31. Be3 {[%emt 0:00:39]} Ne5 {[%emt 0:00:32]} 32. b3 {[%emt 0:00:07]} Kg7 {[%emt 0:03:03]} 33. Kg1 {[%emt 0:00:03]} Nd3 {[%emt 0:02:15]} 34. Kf1 {[%emt 0:00:44]} Be5 {[%emt 0:00:29]} 35. Bd2 {[%emt 0:00:49]} Kg6 {[%emt 0:02:09]} (35... Bxc3 $5 36. Bxc3+ f6 $11) 36. Ke2 {[%emt 0:00:57]} Nb4 {[%emt 0:00:09]} 37. Na4 {[%emt 0:02:59]} Bc7 {[%emt 0:00:57]} 38. Nc3 {[%emt 0:00:07]} Bc6 {[%emt 0:00:35]} 39. a4 {[%emt 0:01:17]} (39. a3 $11 {keeps the balance.} Nc2 40. Kd3) 39... Nc2 $1 $17 {[%emt 0:00:23]} 40. f4 {[%emt 0:02:01]} Nd4+ {[%emt 0:00:12]} 41. Kd3 {[%emt 0:00:08]} Nxb3 {[%emt 0:00:25]} 42. Be3 {[%emt 0:00:01]} gxf4 {[%emt 0:01:29]} 43. gxf4 {[%emt 0:00:02]} Nd4 {[%emt 0:00:14]} 44. Bh3 {[%emt 0:02:56]} (44. h3 $17 {was called for.}) 44... Nf3 {[%emt 0:02:48]} (44... Kh5 $19 45. Bxd4 cxd4) 45. f5+ {[%emt 0:00:13]} exf5 {[%emt 0:00:34]} (45... Kf6 $19 {and Black stays clearly on top. Strongly threatening ...h5.} 46. Bxh6 Ne5+ 47. Kc2 Nxc4) 46. Bxf5+ {[%emt 0:00:11]} Kg7 {[%emt 0:00:38] Threatens to win with ...Ne5+.} 47. Nd5 {[%emt 0:01:16]} Bxd5 {[%emt 0:01:27]} ({Black should play} 47... Bd8 $15 48. a5 b5 49. Bxc5 Ne5+ 50. Ke2 Nxc4 51. Bd4+ Kf8) 48. exd5 {[%emt 0:01:13]} Bxh2 $15 {[%emt 0:00:54][%mdl 4096] Endgame KBB-KBN} 49. a5 $1 {[%emt 0:00:06]} Bc7 {[%emt 0:00:21]} 50. Bc8 {[%emt 0:02:15]} Ne5+ {[%emt 0:00:18]} 51. Kc3 $1 {[%emt 0:00:08]} h5 {[%emt 0:00:20]} 52. Bxa6 {[%emt 0:00:06]} h4 {[%emt 0:00:20]} 53. Bc8 {[%emt 0:00:02] This bishop pair is nice.} bxa5 {[%emt 0:00:08] White must now prevent ...Bd6.} 54. Bxc5 {[%emt 0:00:07]} Kg6 $1 {[%emt 0:00:03]} 55. Be7 {[%emt 0:00:31][%mdl 1024] c5 is the strong threat. White has compensation.} f6 {[%emt 0:00:22]} 56. d6 {[%emt 0:00:27]} Bb6 {[%emt 0:00:01]} 57. d7 {[%emt 0:00:09]} Nc6 {[%emt 0:00:02] Against d8Q} 58. Bd6 {[%emt 0:00:25] Hoping for c5.} h3 $2 {[%emt 0:00:08] [#]} (58... Kf7 $11) 59. c5 $4 {[%emt 0:00:18][%mdl 8192] [#]} (59. Bb7 $1 $18 {[%cal Rb7c6] is the narrow road to win.} Ne5 60. c5 Nxd7 61. cxb6 Nxb6 62. Bc7 Na4+ 63. Kd4) 59... Bd8 $4 {[%emt 0:00:03][%mdl 8192]} (59... Bxc5 $1 $19 {[%mdl 512]} 60. Bf4 (60. Bxc5 $2 h2 $19) 60... a4) 60. Bb7 $18 {[%emt 0:00:05]} Ne5 {[%emt 0:00:05]} 61. c6 {[%emt 0:00:18] aiming for c7.} h2 $2 {[%emt 0:00:12]} (61... Kf5 {was worth a try.}) 62. c7 {[%emt 0:00:05] White is winning.} Bxc7 {[%emt 0:00:01]} 63. Bxc7 {[%emt 0:00:02]} Nxd7 {[%emt 0:00:01]} 64. Bxh2 {[%emt 0:00:03]} Nc5 {[%emt 0:00:03][%mdl 32768] Never resign too early!  Weighted Error Value: White=0.30/Black=0.36. An unexpected result.} 1/2-1/2

[Event "Slovakia Open 2022"]
[Site "Bratislava"]
[Date "2022.10.01"]
[Round "5.18"]
[White "Bombek, Peter"]
[Black "Melih, Mario"]
[Result "1-0"]
[ECO "D36"]
[WhiteElo "2083"]
[BlackElo "1633"]
[Annotator "TA"]
[PlyCount "61"]
[EventDate "2022.09.30"]
[EventCountry "SVK"]
[SourceTitle "playchess.com"]
[Source "ChessBase"]
[SourceQuality "1"]
[TimeControl "2700+10"]

{[%evp 23,61,42,27,36,50,33,43,31,39,17,15,18,42,39,120,116,121,96,220,217,234,216,202,210,366,364,388,394,487,445,510,428,568,547,571,564,561,559,546,542]} 1. d4 {[%emt 0:00:06]} d5 {[%emt 0:00:02]} 2. c4 {[%emt 0:00:01]} e6 {[%emt 0:00:02]} 3. Nc3 {[%emt 0:00:01]} Nf6 {[%emt 0:00:02]} 4. cxd5 {[%emt 0:00:10]} exd5 {[%emt 0:00:03]} 5. Bg5 {[%emt 0:00:10]} Be7 {[%emt 0:00:03]} 6. e3 {[%emt 0:00:00]} Nbd7 {[%emt 0:00:41]} 7. Bd3 {[%emt 0:00:09]} c6 {[%emt 0:00:03]} 8. Qc2 {[%emt 0:00:12]} h6 {[%emt 0:00:04]} 9. Bh4 {[%emt 0:00:14]} O-O {[%emt 0:00:17]} 10. Nf3 {[%emt 0:00:02]} Re8 {[%emt 0:00:20]} 11. O-O {[%emt 0:00:09]} Nf8 {[%emt 0:00:16]} 12. Rab1 {[%emt 0:01:02]} Be6 {[%emt 0:00:31]} 13. b4 {[%emt 0:00:20] D36: Queen's Gambit Declined: Exchange Variation: Main line (5 Bg5 c6 6 Qc2).} (13. Ne5 {with more complications.} N8d7 14. f4 Ng4 15. Bxe7 Qxe7 16. Rbe1) 13... Rc8 {[%emt 0:03:58]} 14. Rfc1 {[%emt 0:02:09]} g5 {[%emt 0:04:12]} 15. Bg3 {[%emt 0:00:17] White is slightly better.} Nh5 {[%emt 0:03:37] [#]} 16. Qd2 $146 {[%emt 0:06:48]} ({Predecessor:} 16. Na4 Nxg3 17. hxg3 Rc7 18. Nc5 Bc8 19. Qa4 a6 20. Qb3 g4 21. Nh2 h5 22. Nf1 {0-1 (32) Hoang,N (2341)-Dao,T (2545) Hanoi 1995}) 16... Nxg3 {[%emt 0:02:39]} 17. hxg3 {[%emt 0:00:22]} Bd6 {[%emt 0:00:52]} 18. b5 {[%emt 0:01:12]} f5 {[%emt 0:04:14]} ({Black should play} 18... c5 $14) 19. bxc6 {[%emt 0:00:59]} bxc6 {[%emt 0:00:34]} 20. Rb7 {[%emt 0:02:56] Against Qe7. White is more active.} Rc7 {[%emt 0:00:47] [#] A mistake that costs the game.} (20... Re7 $16 21. Rbb1 Rf7) 21. Rxc7 $1 $18 {[%emt 0:00:18]} Bxc7 {[%emt 0:00:24] [#]} 22. Na4 $1 {[%emt 0:00:36]} Bd7 {[%emt 0:03:06]} 23. Nc5 {[%emt 0:03:00] Pair of Knights!} f4 $2 {[%emt 0:00:51]} (23... Re7 24. Qc2 f4) 24. exf4 {[%emt 0:03:58]} ({But not} 24. gxf4 gxf4 25. exf4 Ne6 $18) 24... gxf4 {[%emt 0:00:15]} 25. Nxd7 {[%emt 0:01:04]} Nxd7 {[%emt 0:01:42]} 26. gxf4 {[%emt 0:01:17] White is clearly winning.} c5 {[%emt 0:01:37]} 27. dxc5 {[%emt 0:03:33] Strongly threatening Bb5.} Qf6 {[%emt 0:00:02]} 28. g3 {[%emt 0:00:34]} Nf8 {[%emt 0:06:45]} 29. Bb5 {[%emt 0:03:30]} Rd8 {[%emt 0:00:25]} 30. Re1 {[%emt 0:03:30]} Ne6 {[%emt 0:00:43]} 31. Qe3 {[%emt 0:01:44] Weighted Error Value: White=0.07 (flawless) /Black=0.42} 1-0

[Event "Slovakia Open 2022"]
[Site "Bratislava"]
[Date "2022.10.01"]
[Round "5.19"]
[White "Tomcikova, Zuzana"]
[Black "Chlpek, Daniel"]
[Result "1/2-1/2"]
[ECO "A08"]
[WhiteElo "1796"]
[BlackElo "2020"]
[Annotator "TA"]
[PlyCount "63"]
[EventDate "2022.09.30"]
[EventCountry "SVK"]
[SourceTitle "playchess.com"]
[Source "ChessBase"]
[SourceQuality "1"]
[TimeControl "2700+10"]

{[%evp 10,63,5,1,30,-11,-12,-27,20,17,14,-15,-4,-50,-26,-36,-29,-19,-29,-97,-91,-105,-30,-62,-19,-19,-14,-14,-14,-19,-20,-6,0,-1,-5,-37,0,-37,-37,-37,-38,-31,-24,-121,-37,-37,27,0,59,51,79,79,80,62,70,72]} 1. Nf3 {[%emt 0:00:05]} c5 {[%emt 0:00:01]} 2. g3 {[%emt 0:00:02]} Nc6 {[%emt 0:00:04]} 3. Bg2 {[%emt 0:00:02]} g6 {[%emt 0:00:03]} 4. O-O {[%emt 0:00:02]} Bg7 {[%emt 0:00:10]} 5. d3 {[%emt 0:00:03]} d5 {[%emt 0:00:00]} 6. Nbd2 {[%emt 0:00:07]} e5 {[%emt 0:00:12] A08: King's Indian Attack.} 7. e4 {[%emt 0:00:14] [#] Threatens to win with exd5.} (7. c4 $5 {[%cal Rc4d5]}) 7... d4 {[%emt 0:00:10]} 8. a4 {[%emt 0:00:20]} Nf6 {[%emt 0:01:36]} (8... Nge7 $142) 9. Nc4 $11 {[%emt 0:00:25]} Qc7 {[%emt 0:01:29]} 10. Re1 {[%emt 0:00:08]} O-O {[%emt 0:00:05]} 11. Nh4 {[%emt 0:00:53]} (11. c3 $11) 11... Be6 {[%emt 0:02:10]} (11... Bg4 $5 {[%cal Rg4d1]} 12. Qd2 Nd7 $11) 12. b3 {[%emt 0:01:21]} a6 {[%emt 0:01:12]} 13. f4 {[%emt 0:05:30]} b5 {[%emt 0:00:41] [#] Hoping for ...Bg4.} 14. Nb2 $146 {[%emt 0:00:04]} (14. Nxe5 $11 {remains equal.} Nxe5 15. fxe5) ({Predecessor:} 14. Nxe5 Nxe5 15. fxe5 Ng4 16. Nf3 Nxe5 17. Nxe5 Bxe5 18. Bh6 Rfe8 19. Qd2 c4 20. axb5 axb5 21. bxc4 bxc4 {0-1 (45) Crockett,M-Galant,S (2190) Oklahoma 2003}) 14... exf4 $17 {[%emt 0:03:25]} 15. Bxf4 {[%emt 0:00:28]} Ne5 {[%emt 0:00:53]} (15... Qd7 $17) 16. Nf3 {[%emt 0:05:27]} Nfd7 {[%emt 0:00:08]} 17. Ng5 {[%emt 0:01:29]} h6 {[%emt 0:02:30]} 18. Nxe6 {[%emt 0:00:27]} fxe6 {[%emt 0:00:02]} 19. Bh3 {[%emt 0:01:17]} Qd6 {[%emt 0:01:21]} 20. Rf1 {[%emt 0:01:55]} g5 {[%emt 0:00:43]} 21. Bxe5 {[%emt 0:00:07]} Nxe5 {[%emt 0:00:50]} ({Don't take} 21... Bxe5 22. Qh5 Kh7 23. axb5 axb5 24. Rxa8 Rxa8 25. Qf7+ Bg7 26. Bxe6 $16) 22. Qe2 {[%emt 0:01:08]} Qe7 {[%emt 0:07:37]} 23. Rxf8+ {[%emt 0:03:59]} Rxf8 {[%emt 0:00:05]} 24. axb5 {[%emt 0:00:31]} axb5 {[%emt 0:00:01]} 25. Ra6 {[%emt 0:00:11]} Rf6 {[%emt 0:00:08][%cal Oh6h5]} 26. Ra5 {[%emt 0:04:04]} (26. Bg4 $11) 26... Qe8 {[%emt 0:01:15]} (26... h5 $17 27. Rxb5 (27. Qxh5 $2 Rh6 $19) 27... g4) 27. Bg4 $15 {[%emt 0:07:58] Inhibits Nf3+.} Bf8 {[%emt 0:05:51]} (27... Nxg4 $15 28. Qxg4 h5) 28. Nd1 {[%emt 0:00:55]} (28. Bh5 $5 {[%cal Rh5e8]} Qb8 29. Nd1 $11) 28... Bd6 {[%emt 0:06:02]} (28... Nxg4 $11 29. Qxg4 c4) 29. Nf2 $14 {[%emt 0:00:25]} b4 {[%emt 0:02:06]} 30. Bh5 {[%emt 0:00:31]} Qf8 {[%emt 0:02:00]} 31. Ng4 {[%emt 0:00:41]} Nxg4 {[%emt 0:00:28]} 32. Bxg4 {[%emt 0:00:07] Weighted Error Value: White=0.19 (very precise) /Black=0.25 (precise)} 1/2-1/2

[Event "Slovakia Open 2022"]
[Site "Bratislava"]
[Date "2022.10.01"]
[Round "5.20"]
[White "Migalko, Dmitriy"]
[Black "Panko, Radoslav"]
[Result "0-1"]
[ECO "C01"]
[WhiteElo "1528"]
[BlackElo "1996"]
[Annotator "TA"]
[PlyCount "70"]
[EventDate "2022.09.30"]
[EventCountry "SVK"]
[SourceTitle "playchess.com"]
[Source "ChessBase"]
[SourceQuality "1"]
[TimeControl "2700+10"]

{[%evp 10,70,0,-33,0,8,2,-16,-11,-31,-33,-36,-27,-45,-38,-21,-29,-52,-55,-67,-60,-93,-41,-34,-27,-154,-133,-155,-146,-266,-266,-271,-256,-300,-53,-72,210,-54,-57,-154,-154,-188,-176,-179,-175,-193,-105,-99,-91,-205,-193,-193,-191,-29993,-1292,-29999,-29992,-29992,-29993,-29993,-29994,-29998,-29999]} 1. d4 {[%emt 0:00:06]} e6 {[%emt 0:00:06][%cal Be7e6,Be6d5][%mdl 32]} 2. e4 {[%emt 0:00:27]} d5 {[%emt 0:00:03]} 3. exd5 {[%emt 0:00:02]} exd5 {[%emt 0:00:02]} 4. c4 {[%emt 0:00:01]} Nf6 {[%emt 0:00:06]} 5. Nc3 {[%emt 0:00:08]} Be7 {[%emt 0:00:12]} 6. Bg5 {[%emt 0:00:27]} Nbd7 {[%emt 0:00:57] C01: French: Exchange Variation.} 7. Nf3 {[%emt 0:01:01]} O-O {[%emt 0:00:10]} 8. cxd5 {[%emt 0:00:41] [#]} Nxd5 $146 {[%emt 0:00:13] The position is equal.} ({Predecessor:} 8... Nb6 9. Bxf6 Bxf6 10. Qb3 Re8+ 11. Be2 Bg4 12. O-O Bxf3 13. Bxf3 Bxd4 14. Rad1 Be5 {½-½ (30) Lochte,T (2070)-De Francesco,K (2252) Caleta 2017}) 9. Nxd5 {[%emt 0:00:56]} (9. Bd2 $5 {[%cal Rc3d5]} N7f6 10. Bc4 $11) 9... Bxg5 {[%emt 0:00:05]} 10. Be2 {[%emt 0:00:30][%cal Od5c7]} Bh6 {[%emt 0:00:43]} 11. O-O {[%emt 0:00:20]} Nb6 {[%emt 0:00:47]} (11... c6 $5 {[%cal Rc6d5]} 12. Ne3 Nb6 $11) 12. Nxb6 {[%emt 0:00:45]} axb6 {[%emt 0:00:03]} 13. Ne5 {[%emt 0:01:01]} Be6 {[%emt 0:00:23]} 14. a3 {[%emt 0:01:28]} c6 {[%emt 0:01:38]} 15. f4 {[%emt 0:01:36]} Bd5 {[%emt 0:00:15]} (15... g6 $17 16. Bc4 Bxc4 17. Nxc4 Bg7) 16. Ng4 $15 {[%emt 0:02:48]} Qd6 {[%emt 0:00:36]} 17. f5 {[%emt 0:03:04]} (17. g3 $11 {keeps the balance.}) 17... Bf4 {[%emt 0:00:24] Black is more active.} 18. Qd3 {[%emt 0:07:27][%cal Of5f6]} Rfe8 {[%emt 0:01:38]} 19. g3 {[%emt 0:02:45] [#]} (19. Bf3 $17 {is a better defense.}) 19... Bxg3 $1 $19 {[%emt 0:00:22][%mdl 512] A strong pair of Bishops.} 20. Bf3 {[%emt 0:03:31]} ({Don't go for} 20. hxg3 $2 Rxe2 $1 {[%mdl 512]} 21. Rf2 Re4 $19) 20... Bh4 {[%emt 0:02:23]} 21. f6 {[%emt 0:02:06]} Bxf6 {[%emt 0:02:44]} ({Worse is} 21... gxf6 22. Nh6+ Kh8 23. Nf5 $11) (21... Qf4 22. Ne5 Rxe5 23. dxe5 $17) (21... g6 $19 {White must now prevent ...Bxf3.} 22. Rad1 Bg5 23. Bxd5 Qxd5) 22. Bxd5 $15 {[%emt 0:00:56]} cxd5 $4 {[%emt 0:03:26][%mdl 8192] [#]} (22... Qxd5 $17 {and life is bright.} 23. Rxf6 Qg5) 23. Nxf6+ {[%emt 0:00:13]} ({Only move:} 23. Rxf6 $1 $18 {[%mdl 512]} Re6 24. Rf3) 23... gxf6 {[%emt 0:00:06]} 24. Rf3 {[%emt 0:00:20]} ({White should try} 24. Rf5 $15) 24... Kh8 $17 {[%emt 0:00:42]} 25. Raf1 {[%emt 0:00:10]} Rg8+ {[%emt 0:00:14]} 26. Kh1 {[%emt 0:00:22]} Rg6 {[%emt 0:00:06]} 27. Rf5 {[%emt 0:00:38]} Qe6 {[%emt 0:02:10]} (27... Kg7 $19 28. Qf3 Rd8) 28. Qf3 {[%emt 0:01:34][%csl LRd5,LRf6] [#]} Kg7 $1 {[%emt 0:03:39]} 29. Rxd5 {[%emt 0:01:15]} (29. h4 $17) 29... Rc8 $19 {[%emt 0:00:28]} 30. Rh5 {[%emt 0:02:30]} Rc2 {[%emt 0:02:19]} 31. Qxb7 $2 {[%emt 0:00:18]} (31. b3 $19) 31... Rxb2 {[%emt 0:00:40]} (31... Qe2 $142 32. Rxh7+ Kxh7 33. Qxf7+ Rg7 34. Qxg7+ Kxg7 35. Rg1+ Kf7 36. Rg7+ Kxg7 37. h4 Qh2#) 32. h4 {[%emt 0:05:38]} Qa2 {[%emt 0:00:16][%csl Ga2][%cal Rb2h2] Black mates.} 33. Rg5 {[%emt 0:01:11]} fxg5 {[%emt 0:00:35]} 34. h5 {[%emt 0:00:32]} Rf6 {[%emt 0:00:28]} 35. Rxf6 {[%emt 0:00:38]} Rb1+ {[%emt 0:00:05] Weighted Error Value: White=0.63/Black=0.44} 0-1

[Event "Slovakia Open 2022"]
[Site "Bratislava"]
[Date "2022.10.01"]
[Round "5.21"]
[White "Mandak, Miroslav"]
[Black "Shykhnenko, Hryhorii"]
[Result "1-0"]
[ECO "C50"]
[WhiteElo "1864"]
[BlackElo "1317"]
[Annotator "NA RC COMBH"]
[PlyCount "61"]
[EventDate "2022.09.30"]
[EventCountry "SVK"]
[SourceTitle "playchess.com"]
[Source "ChessBase"]
[SourceQuality "1"]
[TimeControl "2700+10"]

1. e4 {[%emt 0:00:07]} e5 {[%emt 0:00:00]} 2. Nf3 {[%emt 0:00:11]} Nf6 {[%emt 0:00:02]} 3. Nc3 {[%emt 0:01:03]} Nc6 {[%emt 0:00:02]} 4. Bc4 {[%emt 0:00:58]} Bc5 {[%emt 0:00:06]} 5. O-O {[%emt 0:00:55]} d6 {[%emt 0:00:09]} 6. h3 {[%emt 0:00:13]} O-O {[%emt 0:00:03]} 7. Re1 {[%emt 0:00:37]} Re8 {[%emt 0:00:42]} 8. d3 {[%emt 0:02:45]} h6 {[%emt 0:00:02]} 9. a3 {[%emt 0:02:42]} Be6 {[%emt 0:00:59]} 10. Nd5 {[%emt 0:03:00]} a6 {[%emt 0:05:01]} 11. b4 {[%emt 0:01:35]} Ba7 {[%emt 0:00:23]} 12. Bb3 {[%emt 0:00:58]} Bxd5 {[%emt 0:00:52]} 13. exd5 {[%emt 0:00:37]} Ne7 {[%emt 0:00:26]} 14. c4 {[%emt 0:00:09]} c6 {[%emt 0:00:13]} 15. dxc6 {[%emt 0:00:09]} Nxc6 {[%emt 0:00:18]} 16. Bb2 {[%emt 0:02:00]} e4 {[%emt 0:01:35]} 17. Bxf6 {[%emt 0:04:49]} Qxf6 {[%emt 0:00:02]} 18. dxe4 {[%emt 0:00:37]} Ne5 {[%emt 0:00:25]} 19. Qe2 {[%emt 0:04:00]} Ng6 {[%emt 0:02:17]} 20. g3 {[%emt 0:00:32]} Rac8 {[%emt 0:01:21]} 21. Kg2 {[%emt 0:01:00]} Re7 {[%emt 0:01:38]} 22. Rad1 {[%emt 0:05:04]} Rce8 {[%emt 0:01:17]} 23. Qc2 {[%emt 0:00:42]} Bb8 {[%emt 0:03:23]} 24. Rd5 {[%emt 0:03:17]} Re6 {[%emt 0:01:00]} 25. c5 {[%emt 0:00:53]} dxc5 {[%emt 0:01:08]} 26. Rf5 {[%emt 0:00:13]} Qe7 {[%emt 0:00:34]} 27. Bxe6 {[%emt 0:00:06]} Qxe6 {[%emt 0:00:11]} 28. Rxc5 {[%emt 0:00:19]} Bd6 {[%emt 0:00:42]} 29. Rc4 {[%emt 0:01:07]} h5 {[%emt 0:00:17]} 30. Rd4 {[%emt 0:01:56]} h4 {[%emt 0:00:27]} 31. Qd2 {[%emt 0:00:41]} 1-0

[Event "Slovakia Open 2022"]
[Site "Bratislava"]
[Date "2022.10.01"]
[Round "5.22"]
[White "Park, Seonjae"]
[Black "Mizicka, Matus"]
[Result "0-1"]
[ECO "A51"]
[WhiteElo "1704"]
[BlackElo "1975"]
[Annotator "TA"]
[PlyCount "66"]
[EventDate "2022.09.30"]
[EventCountry "SVK"]
[SourceTitle "playchess.com"]
[Source "ChessBase"]
[SourceQuality "1"]
[TimeControl "2700+10"]

{[%evp 9,66,52,50,42,79,63,72,83,104,102,197,108,109,112,122,124,133,103,110,100,97,92,83,75,89,94,94,97,86,95,89,77,87,77,101,92,93,101,126,52,118,42,58,35,29,30,44,52,66,-663,-624,-2403,-2165,-29987,-29988,-29982,-29983,-29995,-29996]} 1. d4 {[%emt 0:00:03]} Nf6 {[%emt 0:00:01]} 2. c4 {[%emt 0:00:01]} e5 {[%emt 0:00:08]} 3. dxe5 {[%emt 0:00:05]} Ne4 {[%emt 0:00:06]} 4. Nf3 {[%emt 0:01:03]} d6 {[%emt 0:00:12]} 5. exd6 {[%emt 0:00:37]} Bxd6 {[%emt 0:00:01][%cal Oe4f2] White must now prevent ...Nxf2!} 6. Nbd2 {[%emt 0:00:46] [#] A51: Budapest Gambit, Fajarowicz Variation.} Nxd2 $146 {[%emt 0:01:18]} ({Predecessor:} 6... Nc5 7. e3 Bf5 8. Nb3 Nbd7 9. Nbd4 Qf6 10. b4 Ne4 11. c5 Be5 12. Bb2 g5 {0-1 (57) Baturina,M (1704)-Trzebinski,P (1557) Bratislava 2019}) 7. Bxd2 {[%emt 0:02:43]} ({Reject} 7. Qxd2 Nc6 8. Qc2 O-O $11) 7... Bf5 {[%emt 0:00:07]} 8. e3 {[%emt 0:01:06] White is better.} Nc6 {[%emt 0:00:24]} 9. Bc3 {[%emt 0:00:19]} Rg8 {[%emt 0:00:10] [#]} (9... Qd7 $16 {keeps fighting.}) 10. a3 {[%emt 0:04:02]} (10. Qb3 $1 $18 {c5 is the strong threat.} Rb8 11. O-O-O) 10... Qe7 $16 {[%emt 0:01:06]} 11. Bd3 {[%emt 0:00:56]} Bxd3 {[%emt 0:00:10]} 12. Qxd3 {[%emt 0:00:05]} O-O-O {[%emt 0:00:21]} 13. O-O-O {[%emt 0:01:11]} g6 {[%emt 0:00:08][%cal Od6a3]} 14. Qc2 {[%emt 0:00:33]} f5 {[%emt 0:00:26]} 15. Kb1 {[%emt 0:02:28]} Qf7 {[%emt 0:00:20]} 16. Bd4 {[%emt 0:01:03]} g5 {[%emt 0:01:20]} 17. c5 {[%emt 0:03:11]} Be7 {[%emt 0:01:25]} 18. Ne5 {[%emt 0:02:16]} Nxe5 {[%emt 0:00:03]} 19. Bxe5 {[%emt 0:00:12]} Qe6 {[%emt 0:00:04]} 20. Bd4 {[%emt 0:01:47]} (20. f4 {with more complications.} h5 21. Rxd8+ Rxd8 22. Rd1) 20... Rgf8 {[%emt 0:00:17]} 21. Rhe1 {[%emt 0:01:31]} Qc6 {[%emt 0:00:07]} 22. f3 {[%emt 0:00:38]} Kb8 {[%emt 0:05:53]} 23. b4 {[%emt 0:02:52]} h6 {[%emt 0:03:05]} 24. Bc3 {[%emt 0:04:02]} (24. e4 $16) 24... Qe6 {[%emt 0:01:17]} ({Better is} 24... g4 $14) 25. Bb2 {[%emt 0:01:56]} (25. Rxd8+ $16 Rxd8 26. e4) 25... g4 {[%emt 0:00:21]} 26. f4 {[%emt 0:00:21]} Rxd1+ {[%emt 0:04:17]} 27. Qxd1 {[%emt 0:00:02]} Rd8 {[%emt 0:00:07]} 28. Qc2 {[%emt 0:00:29]} a5 {[%emt 0:03:56]} 29. Bd4 $2 {[%emt 0:03:05][%mdl 8192] Now White is beyond hope.} ({Much worse is} 29. bxa5 Rd5 $11) (29. e4 $14) 29... Rxd4 $1 $19 {[%emt 0:00:23][%mdl 64] [#] Pin} 30. Qc3 {[%emt 0:00:30]} Qe4+ {[%emt 0:00:38]} 31. Ka2 {[%emt 0:00:04]} Rd3 {[%emt 0:00:33] Black mates.} 32. Qh8+ {[%emt 0:00:10]} Ka7 {[%emt 0:00:04]} 33. Qxh6 {[%emt 0:00:21]} Qc4+ {[%emt 0:00:25] Weighted Error Value: White=0.74/Black=0.12 (very precise)} 0-1